[Event "WCCC U12 2019"]
[Site "Weifang"]
[Date "2019.08.30"]
[Round "9.2"]
[White "Chen, Jonathan"]
[Black "Ochirbat, Lkhagvajamts"]
[Result "0-1"]
[ECO "D31"]
[WhiteElo "1948"]
[BlackElo "2137"]
[Annotator "ChessBase"]
[PlyCount "184"]
[EventDate "2019.08.21"]
[EventType "swiss"]
[EventCountry "CHN"]
[SourceTitle "playchess.com"]
[Source "ChessBase"]
[SourceQuality "1"]
[TimeControl "40/5400+30:1800+30"]

1. d4 {[%emt 0:00:00]} d5 {[%emt 0:00:00]} 2. c4 {[%emt 0:00:00]} e6 {[%emt 0:00:00]} 3. Nc3 {[%emt 0:00:00]} a6 {[%emt 0:00:00]} 4. cxd5 {[%emt 0:03:52]} exd5 {[%emt 0:00:40]} 5. Bf4 {[%emt 0:01:02]} Nf6 {[%emt 0:00:49]} 6. e3 {[%emt 0:01:02]} c6 {[%emt 0:00:25]} 7. Bd3 {[%emt 0:00:48]} Be6 {[%emt 0:00:25]} 8. Nge2 {[%emt 0:01:16]} Nbd7 {[%emt 0:01:45]} 9. Qc2 {[%emt 0:01:15]} Be7 {[%emt 0:01:34]} 10. O-O {[%emt 0:00:38]} O-O {[%emt 0:00:15]} 11. f3 {[%emt 0:03:52]} h6 {[%emt 0:09:44]} 12. Bg3 {[%emt 0:03:29]} Nh5 {[%emt 0:03:43]} 13. Bf2 {[%emt 0:01:32]} f5 {[%emt 0:02:49]} 14. Ng3 {[%emt 0:07:34]} Nxg3 {[%emt 0:00:51]} 15. Bxg3 {[%emt 0:00:43]} Rf7 {[%emt 0:07:02]} 16. Rad1 {[%emt 0:07:02]} Bg5 {[%emt 0:03:44]} 17. Qe2 {[%emt 0:04:13]} Qb6 {[%emt 0:01:35]} 18. Bf2 {[%emt 0:07:12]} Re8 {[%emt 0:02:31]} 19. Na4 {[%emt 0:14:51]} Qb4 {[%emt 0:01:37]} 20. b3 {[%emt 0:00:46]} Qf8 {[%emt 0:04:30]} 21. Rfe1 {[%emt 0:03:53]} Bd8 {[%emt 0:12:47]} 22. Rb1 {[%emt 0:01:43]} Ba5 {[%emt 0:00:48]} 23. Rec1 {[%emt 0:00:27]} Bb4 {[%emt 0:00:21]} 24. Qc2 {[%emt 0:03:19]} Qe7 {[%emt 0:03:54]} 25. Nb2 {[%emt 0:05:45]} Rff8 {[%emt 0:01:39]} 26. Bf1 {[%emt 0:00:35]} Ba3 {[%emt 0:06:48]} 27. Rd1 {[%emt 0:01:29]} Rc8 {[%emt 0:00:39]} 28. Nd3 {[%emt 0:02:09]} c5 {[%emt 0:02:47]} 29. dxc5 {[%emt 0:01:56]} Nxc5 {[%emt 0:01:50]} 30. Qd2 {[%emt 0:00:30]} Nxd3 {[%emt 0:00:06]} 31. Bxd3 {[%emt 0:00:07]} Bb4 {[%emt 0:00:54]} 32. Qe2 {[%emt 0:00:36]} Rc6 {[%emt 0:01:18]} 33. Be1 {[%emt 0:02:48]} Rfc8 {[%emt 0:04:39]} 34. Bxb4 {[%emt 0:01:23]} Qxb4 {[%emt 0:00:03]} 35. Qd2 {[%emt 0:01:32]} Qe7 {[%emt 0:08:37]} 36. Rdc1 {[%emt 0:03:01]} Qc7 {[%emt 0:02:18]} 37. Rxc6 {[%emt 0:00:34]} Qxc6 {[%emt 0:00:05]} 38. Rb2 {[%emt 0:01:16]} Qc1+ {[%emt 0:00:07]} 39. Qxc1 {[%emt 0:00:45]} Rxc1+ {[%emt 0:00:02]} 40. Kf2 {[%emt 0:00:01]} Rd1 {[%emt 0:01:12]} 41. Be2 {[%emt 0:36:22]} Rc1 {[%emt 0:30:47]} 42. Rd2 {[%emt 0:00:11]} Kf7 {[%emt 0:00:46]} 43. Bd1 {[%emt 0:00:56]} Ke7 {[%emt 0:04:36]} 44. Ke2 {[%emt 0:00:47]} Kd6 {[%emt 0:00:00]} 45. b4 {[%emt 0:04:12]} b6 {[%emt 0:01:59]} 46. Bb3 {[%emt 0:00:30]} Ke5 {[%emt 0:01:43]} 47. h3 {[%emt 0:03:58]} g5 {[%emt 0:01:31]} 48. Kf2 {[%emt 0:00:00]} f4 {[%emt 0:00:00]} 49. exf4+ {[%emt 0:00:00]} gxf4 {[%emt 0:00:00]} 50. g3 {[%emt 0:00:00]} fxg3+ {[%emt 0:00:00]} 51. Kxg3 {[%emt 0:00:00]} Rg1+ {[%emt 0:00:00]} 52. Kf2 {[%emt 0:00:00]} Rg7 {[%emt 0:00:00]} 53. Re2+ {[%emt 0:00:00]} Kd6 {[%emt 0:00:00]} 54. Rd2 {[%emt 0:00:00]} Ke5 {[%emt 0:00:00]} 55. Re2+ {[%emt 0:00:00]} Kd6 {[%emt 0:00:00]} 56. Rd2 {[%emt 0:00:00]} a5 {[%emt 0:00:00]} 57. bxa5 {[%emt 0:00:00]} bxa5 {[%emt 0:00:00]} 58. Rd4 {[%emt 0:00:00]} Kc5 {[%emt 0:00:00]} 59. Ra4 {[%emt 0:00:00]} Kb5 {[%emt 0:00:00]} 60. Rd4 {[%emt 0:00:00]} Kc5 {[%emt 0:00:00]} 61. Ra4 {[%emt 0:00:00]} Kb5 {[%emt 0:00:00]} 62. Rd4 {[%emt 0:00:00]} Kc5 {[%emt 0:00:00]} 63. Ra4 {[%emt 0:00:00]} Ra7 {[%emt 0:00:00]} 64. Rh4 {[%emt 0:00:00]} Bd7 {[%emt 0:00:00]} 65. Rxh6 {[%emt 0:00:00]} a4 {[%emt 0:00:00]} 66. Bc2 {[%emt 0:00:00]} Rb7 {[%emt 0:00:00]} 67. Rh7 {[%emt 0:00:00]} Rb2 {[%emt 0:00:00]} 68. Rxd7 {[%emt 0:00:00]} Rxc2+ {[%emt 0:00:00]} 69. Ke3 {[%emt 0:00:00]} Rxa2 {[%emt 0:00:00]} 70. Ra7 {[%emt 0:00:00]} a3 {[%emt 0:00:00]} 71. Rc7+ {[%emt 0:00:18]} Kb5 {[%emt 0:00:00]} 72. Ra7 {[%emt 0:00:48]} Ra1 {[%emt 0:00:00]} 73. Kd2 {[%emt 0:01:18]} Kc4 {[%emt 0:00:14]} 74. Kc2 {[%emt 0:00:32]} Kd4 {[%emt 0:04:06]} 75. h4 {[%emt 0:01:22]} Ke3 {[%emt 0:00:11]} 76. h5 {[%emt 0:00:44]} d4 {[%emt 0:02:39]} 77. Re7+ {[%emt 0:00:19]} Kf2 {[%emt 0:01:02]} 78. Ra7 {[%emt 0:01:30]} a2 {[%emt 0:01:18]} 79. Kb2 {[%emt 0:03:19]} Rh1 {[%emt 0:00:27]} 80. Rxa2 {[%emt 0:01:12]} d3 {[%emt 0:01:40]} 81. h6 {[%emt 0:05:42]} Rxh6 {[%emt 0:01:04]} 82. Ra8 {[%emt 0:01:16]} Re6 {[%emt 0:01:08]} 83. Rd8 {[%emt 0:00:42]} Ke2 {[%emt 0:00:16]} 84. Kc3 {[%emt 0:00:08]} Rc6+ {[%emt 0:00:40]} 85. Kb2 {[%emt 0:00:09]} d2 {[%emt 0:00:10]} 86. Re8+ {[%emt 0:00:36]} Kxf3 {[%emt 0:00:45]} 87. Rf8+ {[%emt 0:00:00]} Ke2 {[%emt 0:00:10]} 88. Re8+ {[%emt 0:00:00]} Kd1 {[%emt 0:00:11]} 89. Rd8 {[%emt 0:01:07]} Rb6+ {[%emt 0:00:20]} 90. Kc3 {[%emt 0:00:05]} Kc1 {[%emt 0:00:09]} 91. Ra8 {[%emt 0:01:55]} d1=Q {[%emt 0:00:30]} 92. Ra1+ {[%emt 0:00:04]} Rb1 {[%emt 0:00:14]} 0-1

[Event "WCCC U12 2019"]
[Site "Weifang"]
[Date "2019.08.30"]
[Round "9.3"]
[White "Wang, Alex Yuxuan"]
[Black "Chen, Yuan"]
[Result "0-1"]
[ECO "E04"]
[WhiteElo "1713"]
[BlackElo "1884"]
[Annotator "NA"]
[PlyCount "70"]
[EventDate "2019.08.21"]
[EventType "swiss"]
[EventCountry "CHN"]
[SourceTitle "playchess.com"]
[Source "ChessBase"]
[SourceQuality "1"]
[TimeControl "40/5400+30:1800+30"]

1. Nf3 {[%emt 0:00:00]} Nf6 {[%emt 0:00:05]} 2. g3 {[%emt 0:00:30]} d5 {[%emt 0:00:43]} 3. Bg2 {[%emt 0:00:50]} c5 {[%emt 0:01:04]} 4. O-O {[%emt 0:00:32]} Nc6 {[%emt 0:00:09]} 5. d4 {[%emt 0:00:07]} e6 {[%emt 0:03:24]} 6. c4 {[%emt 0:05:53]} dxc4 {[%emt 0:06:44]} 7. Qa4 {[%emt 0:00:40]} cxd4 {[%emt 0:31:25]} 8. Nxd4 {[%emt 0:00:50]} Qxd4 {[%emt 0:01:02]} 9. Bxc6+ {[%emt 0:00:17]} Bd7 {[%emt 0:00:03]} 10. Rd1 {[%emt 0:00:58]} Bxc6 {[%emt 0:00:53]} 11. Qxc6+ {[%emt 0:00:11]} bxc6 {[%emt 0:00:15]} 12. Rxd4 {[%emt 0:00:07]} Nd7 {[%emt 0:15:32]} 13. Rxc4 {[%emt 0:01:35]} c5 {[%emt 0:00:36]} 14. Be3 {[%emt 0:02:07]} Be7 {[%emt 0:09:54]} 15. Nd2 {[%emt 0:01:12]} O-O {[%emt 0:00:30]} 16. Rac1 {[%emt 0:00:34]} Rab8 {[%emt 0:02:30]} 17. b3 {[%emt 0:01:03]} f5 {[%emt 0:03:40]} 18. f4 {[%emt 0:10:52]} Rb7 {[%emt 0:02:13]} 19. Nf3 {[%emt 0:01:06]} Rd8 {[%emt 0:09:08]} 20. Bf2 {[%emt 0:02:00]} Rb5 {[%emt 0:04:24]} 21. R4c2 {[%emt 0:10:54]} Rc8 {[%emt 0:01:22]} 22. Ne5 {[%emt 0:04:59]} Nxe5 {[%emt 0:02:28]} 23. fxe5 {[%emt 0:00:09]} Kf7 {[%emt 0:00:26]} 24. Rc4 {[%emt 0:01:20]} a5 {[%emt 0:00:53]} 25. R1c3 {[%emt 0:02:13]} g5 {[%emt 0:02:27]} 26. a4 {[%emt 0:27:34]} Rb4 {[%emt 0:00:03]} 27. Rxb4 {[%emt 0:10:20]} axb4 {[%emt 0:00:04]} 28. Rc4 {[%emt 0:00:04]} Ke8 {[%emt 0:00:17]} 29. Kg2 {[%emt 0:02:13]} Kd7 {[%emt 0:00:21]} 30. Kf3 {[%emt 0:00:42]} Kc6 {[%emt 0:01:16]} 31. e4 {[%emt 0:03:12]} Rd8 {[%emt 0:00:12]} 32. Ke2 {[%emt 0:02:04]} fxe4 {[%emt 0:00:46]} 33. Rxe4 {[%emt 0:00:32]} Kd5 {[%emt 0:00:04]} 34. Rc4 {[%emt 0:00:46]} Rc8 {[%emt 0:00:23]} 35. h4 {[%emt 0:06:00]} h6 {[%emt 0:01:07]} 0-1

[Event "WCCC U12 2019"]
[Site "Weifang"]
[Date "2019.08.30"]
[Round "9.4"]
[White "Ji, Jiadong"]
[Black "Navumenka, Mikhei"]
[Result "1-0"]
[ECO "C14"]
[WhiteElo "1703"]
[BlackElo "2148"]
[Annotator "ChessBase"]
[PlyCount "67"]
[EventDate "2019.08.21"]
[EventType "swiss"]
[EventCountry "CHN"]
[SourceTitle "playchess.com"]
[Source "ChessBase"]
[SourceQuality "1"]
[TimeControl "40/5400+30:1800+30"]

1. e4 {[%emt 0:00:00]} e6 {[%emt 0:00:00]} 2. d4 {[%emt 0:00:00]} d5 {[%emt 0:00:00]} 3. Nc3 {[%emt 0:00:00]} Nf6 {[%emt 0:00:00]} 4. Bg5 {[%emt 0:00:00]} Be7 {[%emt 0:00:00]} 5. e5 {[%emt 0:00:00]} Ne4 {[%emt 0:00:00]} 6. Nxe4 {[%emt 0:08:14]} dxe4 {[%emt 0:00:50]} 7. Bxe7 {[%emt 0:00:55]} Qxe7 {[%emt 0:00:02]} 8. c3 {[%emt 0:00:10]} O-O {[%emt 0:01:19]} 9. Qc2 {[%emt 0:06:25]} f5 {[%emt 0:01:35]} 10. exf6 {[%emt 0:00:45]} Qxf6 {[%emt 0:00:03]} 11. O-O-O {[%emt 0:01:04]} Bd7 {[%emt 0:37:56]} 12. Qxe4 {[%emt 0:09:34]} Bc6 {[%emt 0:00:27]} 13. Qe3 {[%emt 0:00:07]} Nd7 {[%emt 0:10:58]} 14. f3 {[%emt 0:03:59]} b5 {[%emt 0:02:27]} 15. Nh3 {[%emt 0:03:54]} Rab8 {[%emt 0:06:12]} 16. Bd3 {[%emt 0:03:58]} Bd5 {[%emt 0:02:51]} 17. Ng5 {[%emt 0:03:30]} h6 {[%emt 0:01:18]} 18. Ne4 {[%emt 0:05:32]} Qf7 {[%emt 0:00:33]} 19. Nd2 {[%emt 0:09:39]} Rfc8 {[%emt 0:08:04]} 20. Be4 {[%emt 0:18:38]} c5 {[%emt 0:03:31]} 21. Kb1 {[%emt 0:04:38]} a5 {[%emt 0:07:41]} 22. Rhe1 {[%emt 0:01:16]} a4 {[%emt 0:01:51]} 23. Bxd5 {[%emt 0:02:53]} exd5 {[%emt 0:00:30]} 24. Qe6 {[%emt 0:00:01]} b4 {[%emt 0:00:41]} 25. Qxf7+ {[%emt 0:00:16]} Kxf7 {[%emt 0:00:01]} 26. c4 {[%emt 0:00:09]} cxd4 {[%emt 0:05:19]} 27. cxd5 {[%emt 0:00:02]} Rb5 {[%emt 0:00:36]} 28. d6 {[%emt 0:06:29]} Rd5 {[%emt 0:00:54]} 29. Re7+ {[%emt 0:00:07]} Kf8 {[%emt 0:00:30]} 30. Rxd7 {[%emt 0:00:07]} d3 {[%emt 0:00:45]} 31. Rb7 {[%emt 0:00:30]} Rxd6 {[%emt 0:00:40]} 32. Rxb4 {[%emt 0:00:04]} Re8 {[%emt 0:00:00]} 33. Ne4 {[%emt 0:00:10]} Rg6 {[%emt 0:00:02]} 34. g4 {[%emt 0:00:15]} 1-0

[Event "WCCC U12 2019"]
[Site "Weifang"]
[Date "2019.08.30"]
[Round "9.5"]
[White "Park, Evan"]
[Black "Dang, Anh Minh"]
[Result "1/2-1/2"]
[ECO "B33"]
[WhiteElo "2078"]
[BlackElo "1891"]
[Annotator "NA"]
[PlyCount "101"]
[EventDate "2019.08.21"]
[EventType "swiss"]
[EventCountry "CHN"]
[SourceTitle "playchess.com"]
[Source "ChessBase"]
[SourceQuality "1"]
[TimeControl "40/5400+30:1800+30"]

1. e4 {[%emt 0:00:24]} c5 {[%emt 0:00:00]} 2. Nf3 {[%emt 0:00:07]} Nc6 {[%emt 0:00:00]} 3. d4 {[%emt 0:00:21]} cxd4 {[%emt 0:00:00]} 4. Nxd4 {[%emt 0:00:20]} Qb6 {[%emt 0:00:19]} 5. Nb3 {[%emt 0:00:11]} Nf6 {[%emt 0:00:20]} 6. Nc3 {[%emt 0:00:05]} e6 {[%emt 0:00:59]} 7. Qe2 {[%emt 0:01:54]} Bb4 {[%emt 0:00:53]} 8. Bd2 {[%emt 0:00:09]} O-O {[%emt 0:00:56]} 9. a3 {[%emt 0:00:06] B33: Sicilian: Pelikan and Sveshnikov Variations} Be7 {[%emt 0:00:28]} 10. e5 {[%emt 0:00:54]} Ne8 {[%emt 0:06:58]} 11. O-O-O {[%emt 0:00:33]} Qc7 {[%emt 0:04:45]} 12. f4 {[%emt 0:08:07]} a6 {[%emt 0:03:06]} 13. h4 $146 {[%emt 0:07:22]} ({Predecessor:} 13. g3 b5 14. Bg2 Rb8 15. Ne4 a5 16. Be3 a4 {0-1 (115) Ivanchuk,V (2764)-Polgar,J (2686) Mexico City 2010}) 13... d6 {[%emt 0:10:05]} 14. exd6 {[%emt 0:03:16]} Nxd6 {[%emt 0:00:33]} 15. Ne4 {[%emt 0:03:21]} b5 {[%emt 0:06:34]} 16. Ng5 {[%emt 0:05:10]} Bf6 {[%emt 0:14:08]} 17. Qd3 {[%emt 0:04:32]} g6 {[%emt 0:04:45]} 18. Bc3 {[%emt 0:04:34]} Nc4 {[%emt 0:06:08]} 19. Bxf6 {[%emt 0:18:02]} Qxf4+ {[%emt 0:00:15]} 20. Nd2 {[%emt 0:00:47]} Nxd2 {[%emt 0:00:56]} 21. Qxd2 {[%emt 0:01:55]} Qxf6 {[%emt 0:00:11]} 22. h5 {[%emt 0:01:55]} Ra7 {[%emt 0:13:18]} 23. Bd3 {[%emt 0:08:00]} Ne5 {[%emt 0:04:23]} 24. Rdf1 {[%emt 0:02:23]} Nxd3+ {[%emt 0:03:37]} 25. cxd3 {[%emt 0:00:09]} Qd4 {[%emt 0:02:36]} 26. hxg6 {[%emt 0:02:45]} Qc5+ {[%emt 0:00:22]} 27. Kb1 {[%emt 0:00:24]} fxg6 {[%emt 0:00:15]} 28. Rxf8+ {[%emt 0:03:18]} Qxf8 {[%emt 0:00:02]} 29. Qe3 {[%emt 0:01:34]} Re7 {[%emt 0:01:28]} 30. Rh3 {[%emt 0:06:50]} Bb7 $19 {[%emt 0:03:15]} 31. Nf3 {[%emt 0:08:01]} Qf5 {[%emt 0:02:02]} 32. Rh4 {[%emt 0:02:32]} Bxf3 {[%emt 0:03:13]} 33. Rf4 {[%emt 0:03:11]} Qd5 {[%emt 0:02:59]} 34. Rd4 {[%emt 0:01:23]} Qc6 {[%emt 0:03:34]} 35. gxf3 {[%emt 0:00:25]} Rd7 {[%emt 0:00:59]} 36. Re4 {[%emt 0:00:30]} Rd6 {[%emt 0:00:29]} 37. Re5 {[%emt 0:00:53]} Qd7 {[%emt 0:00:16]} 38. d4 {[%emt 0:00:55]} Qf7 {[%emt 0:02:34]} 39. f4 {[%emt 0:00:52]} Qd7 {[%emt 0:00:03]} 40. Re4 {[%emt 0:01:16]} Kf7 {[%emt 0:00:45]} 41. Qh3 {[%emt 0:00:55]} h5 {[%emt 0:00:57]} 42. Qe3 {[%emt 0:00:36]} Qc6 {[%emt 0:03:31]} 43. f5 {[%emt 0:04:49]} gxf5 {[%emt 0:04:55]} 44. Rh4 {[%emt 0:01:02]} Qg2 {[%emt 0:04:03]} 45. Qh6 {[%emt 0:03:50]} Rc6 {[%emt 0:12:47]} 46. Rxh5 {[%emt 0:07:33]} Ke7 {[%emt 0:01:11]} 47. Qh8 {[%emt 0:03:39]} Qf1+ {[%emt 0:02:12]} 48. Ka2 {[%emt 0:00:04]} Qc4+ {[%emt 0:00:04]} 49. Ka1 {[%emt 0:00:43]} Qc1+ {[%emt 0:00:33]} 50. Ka2 {[%emt 0:00:05]} Qc4+ {[%emt 0:01:18]} 51. Ka1 {[%emt 0:00:16]} 1/2-1/2

[Event "WCCC U12 2019"]
[Site "Weifang"]
[Date "2019.08.30"]
[Round "9.6"]
[White "Zhang, Di"]
[Black "Khubukshanov, Erdem"]
[Result "0-1"]
[ECO "A37"]
[WhiteElo "1952"]
[BlackElo "2257"]
[Annotator "ChessBase"]
[PlyCount "66"]
[EventDate "2019.08.21"]
[EventType "swiss"]
[EventCountry "CHN"]
[SourceTitle "playchess.com"]
[Source "ChessBase"]
[SourceQuality "1"]
[TimeControl "40/5400+30:1800+30"]

1. Nf3 {[%emt 0:00:00]} c5 {[%emt 0:00:00]} 2. g3 {[%emt 0:00:00]} g6 {[%emt 0:00:13]} 3. Bg2 {[%emt 0:00:28]} Bg7 {[%emt 0:00:12]} 4. c4 {[%emt 0:03:34]} Nc6 {[%emt 0:00:16]} 5. O-O {[%emt 0:00:32]} e6 {[%emt 0:00:55]} 6. Nc3 {[%emt 0:00:53]} Nge7 {[%emt 0:00:34]} 7. e3 {[%emt 0:12:17]} Nf5 {[%emt 0:05:30]} 8. b3 {[%emt 0:04:11]} O-O {[%emt 0:03:14]} 9. Bb2 {[%emt 0:02:45]} b6 {[%emt 0:04:07]} 10. d3 {[%emt 0:08:01]} Bb7 {[%emt 0:01:09]} 11. Qd2 {[%emt 0:01:11]} d5 {[%emt 0:04:00]} 12. cxd5 {[%emt 0:07:49]} exd5 {[%emt 0:01:10]} 13. Ne2 {[%emt 0:00:54]} d4 {[%emt 0:05:11]} 14. exd4 {[%emt 0:03:14]} cxd4 {[%emt 0:01:12]} 15. Rfe1 {[%emt 0:22:55]} Qd7 {[%emt 0:04:35]} 16. g4 {[%emt 0:04:58]} Nfe7 {[%emt 0:05:47]} 17. h3 {[%emt 0:02:42]} Rfe8 {[%emt 0:00:45]} 18. Rac1 {[%emt 0:05:09]} Rac8 {[%emt 0:04:14]} 19. b4 {[%emt 0:03:58]} a6 {[%emt 0:01:53]} 20. a3 {[%emt 0:00:59]} h6 {[%emt 0:02:45]} 21. Nf4 {[%emt 0:03:42]} Qd6 {[%emt 0:02:41]} 22. Re2 {[%emt 0:02:40]} h5 {[%emt 0:13:25]} 23. Rce1 {[%emt 0:02:34]} Bh6 {[%emt 0:01:09]} 24. g5 {[%emt 0:02:26]} Bg7 {[%emt 0:00:17]} 25. Bc1 {[%emt 0:01:29]} Na7 {[%emt 0:05:20]} 26. Qd1 {[%emt 0:02:55]} Nb5 {[%emt 0:00:33]} 27. Qb3 {[%emt 0:00:48]} Rxc1 {[%emt 0:00:30]} 28. Rxc1 {[%emt 0:00:00]} Qxf4 {[%emt 0:00:05]} 29. Rce1 {[%emt 0:00:38]} Bxf3 {[%emt 0:00:23]} 30. Bxf3 {[%emt 0:00:23]} Nc3 {[%emt 0:00:30]} 31. Bg2 {[%emt 0:00:35]} Nxe2+ {[%emt 0:00:19]} 32. Rxe2 {[%emt 0:00:02]} Qc1+ {[%emt 0:00:21]} 33. Kh2 {[%emt 0:00:04]} Be5+ {[%emt 0:00:10]} 0-1

[Event "WCCC U12 2019"]
[Site "Weifang"]
[Date "2019.08.30"]
[Round "9.9"]
[White "Shahil Dey"]
[Black "Xue, Haowen"]
[Result "0-1"]
[ECO "B66"]
[WhiteElo "2207"]
[BlackElo "1917"]
[Annotator "ChessBase"]
[PlyCount "70"]
[EventDate "2019.08.21"]
[EventType "swiss"]
[EventCountry "CHN"]
[SourceTitle "playchess.com"]
[Source "ChessBase"]
[SourceQuality "1"]
[TimeControl "40/5400+30:1800+30"]

1. e4 {[%emt 0:00:00]} c5 {[%emt 0:00:00]} 2. Nf3 {[%emt 0:00:00]} Nc6 {[%emt 0:00:00]} 3. d4 {[%emt 0:00:00]} cxd4 {[%emt 0:00:00]} 4. Nxd4 {[%emt 0:00:00]} Nf6 {[%emt 0:00:00]} 5. Nc3 {[%emt 0:00:00]} d6 {[%emt 0:00:06]} 6. Bg5 {[%emt 0:00:01]} e6 {[%emt 0:00:06]} 7. Qd2 {[%emt 0:00:04]} a6 {[%emt 0:00:05]} 8. f4 {[%emt 0:02:13]} h6 {[%emt 0:01:08]} 9. Bh4 {[%emt 0:00:38]} Nxe4 {[%emt 0:01:20]} 10. Nxe4 {[%emt 0:04:30]} Qxh4+ {[%emt 0:00:32]} 11. g3 {[%emt 0:00:05]} Qd8 {[%emt 0:01:20]} 12. Bg2 {[%emt 0:05:00]} d5 {[%emt 0:03:42]} 13. Nc3 {[%emt 0:04:37]} Be7 {[%emt 0:03:40]} 14. O-O-O {[%emt 0:02:44]} O-O {[%emt 0:01:12]} 15. Kb1 {[%emt 0:01:04]} Bd7 {[%emt 0:11:05]} 16. Rhe1 {[%emt 0:01:29]} Nxd4 {[%emt 0:02:47]} 17. Qxd4 {[%emt 0:00:11]} Bf6 {[%emt 0:00:59]} 18. Qd2 {[%emt 0:03:59]} Qb6 {[%emt 0:17:58]} 19. Qe3 {[%emt 0:14:46]} Qxe3 {[%emt 0:07:28]} 20. Rxe3 {[%emt 0:00:11]} Bc6 {[%emt 0:00:35]} 21. Red3 {[%emt 0:00:54]} Bxc3 {[%emt 0:06:06]} 22. bxc3 {[%emt 0:00:05]} g6 {[%emt 0:14:50]} 23. Re1 {[%emt 0:07:05]} h5 {[%emt 0:05:40]} 24. h3 {[%emt 0:00:04]} Kg7 {[%emt 0:01:58]} 25. g4 {[%emt 0:00:07]} hxg4 {[%emt 0:00:06]} 26. hxg4 {[%emt 0:00:03]} Rae8 {[%emt 0:04:00]} 27. Rde3 {[%emt 0:06:59]} b5 {[%emt 0:06:49]} 28. a4 {[%emt 0:10:06]} bxa4 {[%emt 0:01:18]} 29. Ka2 {[%emt 0:00:45]} Rh8 {[%emt 0:06:18]} 30. c4 {[%emt 0:01:44]} Rh2 {[%emt 0:01:15]} 31. R3e2 {[%emt 0:06:45]} Rc8 {[%emt 0:01:41]} 32. cxd5 {[%emt 0:01:29]} Rxg2 {[%emt 0:00:00]} 33. dxc6 {[%emt 0:00:20]} Rxg4 {[%emt 0:00:00]} 34. Re4 {[%emt 0:01:43]} Rxc6 {[%emt 0:00:02]} 35. R1e2 {[%emt 0:01:59]} g5 {[%emt 0:01:13]} 0-1